bitfinex/quotes_ETHUSD_20240709
["timestamp","ask_amount","ask_price","bid_price","bid_amount"]
[1720543812489,1.48391716,3073.1,3072.8,3.443]
[1720543812490,1.48391716,3072.9,3072.8,3.443]
[1720543813485,1.48391716,3073.1,3072.8,4.438181]
[1720543813727,1.48391716,3073.1,3073.0,3.25414]
[1720543813934,1.48391716,3073.3,3072.8,3.443]
[1720543814085,1.48391716,3073.3,3072.9,3.25424]
[1720543814289,1.48391716,3073.3,3072.8,3.443]
[1720543814508,1.48391716,3072.9,3072.8,3.443]
[1720543814838,1.48391716,3072.7,3072.6,3.25457]
[1720543815140,1.48391716,3072.7,3072.6,6.25457]
[1720543815303,1.48391716,3072.7,3072.6,3.0]
[1720543815960,1.48391716,3073.2,3072.6,6.2545]
[1720543816109,1.48391716,3073.2,3072.9,3.25417]
[1720543816307,7.89055778,3073.6,3073.0,3.25413]
[1720543816507,1.12729964,3073.5,3073.2,3.2539]
[1720543816703,1.48391716,3073.6,3073.2,6.50777]
[1720543816952,1.48391716,3073.6,3073.2,5.61957]
[1720543817548,1.48391716,3073.6,3073.4,3.25372]
[1720543818650,1.48391716,3073.6,3073.4,6.50736]
[1720543818954,1.48391716,3073.4,3073.2,5.61956]
[1720543819252,1.48391716,3073.4,3073.3,3.25383]
[1720543820028,1.48391716,3073.5,3073.3,3.25376]
[1720543820212,1.48391716,3073.5,3073.2,5.61957]
[1720543820213,1.48391716,3073.5,3073.4,3.25372]
[1720543821416,1.48391716,3073.5,3073.3,3.25382]
[1720543821618,1.48391716,3073.5,3073.4,3.25372]
[1720543821840,6.40664062,3073.9,3073.8,3.2533]
[1720543822115,13.55956532,3074.3,3073.8,6.6963]
[1720543822116,0.67978266,3074.3,3073.8,6.6963]
[1720543822458,1.48391716,3074.3,3074.1,3.25298]
[1720543822935,6.40664062,3074.4,3074.1,3.25298]
[1720543823151,6.40664062,3074.4,3074.3,3.25277]
[1720543823347,6.40664062,3074.8,3074.7,3.25234]
[1720543823549,1.48391716,3074.9,3074.7,3.25234]
[1720543823946,1.48391716,3074.9,3074.5,6.50498]
[1720543824160,0.67978266,3075.1,3074.3,3.443]
[1720543824161,1.48391716,3074.7,3074.3,3.443]
[1720543824322,1.48391716,3074.5,3074.3,9.94838]
[1720543824526,1.48391716,3074.5,3074.4,3.25266]
[1720543824767,1.48391716,3074.7,3074.4,3.25266]
[1720543825138,1.48391716,3074.5,3074.4,3.25266]
[1720543825356,1.48391716,3074.5,3074.3,3.443]
[1720543825662,1.48391716,3074.3,3074.2,3.0]
[1720543825963,1.48391716,3074.3,3074.1,6.25296]
[1720543826261,1.48391716,3074.3,3074.2,3.25287]
[1720543826430,0.67953133,3074.8,3073.8,3.443]
[1720543826431,1.48391716,3074.5,3073.8,3.443]
[1720543826645,1.48391716,3074.5,3073.6,2.3277]
[1720543826646,1.48391716,3073.9,3073.7,3.25339]
[1720543827135,1.48391716,3073.9,3073.6,2.3277]
[1720543827136,1.48391716,3073.9,3073.5,3.25355]
[1720543827337,1.48391716,3073.7,3073.3,6.69677]
[1720543827527,1.48391716,3073.7,3072.9,3.2542]
[1720543827731,7.42593762,3074.1,3072.8,5.9012]
[1720543827732,0.67953133,3073.8,3072.8,5.9012]
[1720543827966,2.16344849,3073.8,3073.1,3.25396]
[1720543828162,1.019297,3073.9,3073.4,3.25363]
[1720543828163,1.48391716,3073.6,3073.4,3.25363]
[1720543828331,1.48391716,3073.8,3073.6,3.2535]
[1720543828531,0.68021635,3074.0,3073.7,3.2534]
[1720543828734,0.68021635,3074.2,3073.8,3.25328]
[1720543828950,2.16413351,3074.3,3074.0,3.25303]
[1720543829264,1.48391716,3074.3,3074.0,3.25303]
[1720543829496,1.48391716,3074.1,3073.8,3.25328]
[1720543829671,1.48391716,3073.9,3073.8,3.25328]
[1720543829862,0.77062096,3074.2,3073.9,3.25315]
[1720543830063,1.48391716,3074.3,3073.9,3.25312]
[1720543830598,1.48391716,3074.3,3073.8,3.25321]
[1720543830894,1.48391716,3074.0,3073.9,3.0]
[1720543831404,2.16413351,3074.2,3073.9,3.25319]
[1720543831568,1.48391716,3074.2,3074.0,3.25299]
[1720543832301,6.40664062,3074.7,3074.3,3.25277]
[1720543832302,1.48391716,3074.4,3074.3,3.25277]
[1720543832462,1.48391716,3074.5,3074.3,3.25277]
[1720543832663,1.48391716,3074.5,3074.3,6.50548]
[1720543833296,1.48391716,3074.7,3074.4,3.25266]
[1720543833500,1.48391716,3074.7,3074.6,3.25245]
[1720543833709,2.16413351,3074.9,3074.6,3.25245]
[1720543834002,1.48391716,3074.9,3074.8,3.25224]
[1720543834162,1.48391716,3074.9,3074.8,9.50448]
[1720543834559,1.48391716,3074.9,3074.8,6.25224]
[1720543834799,1.48391716,3074.9,3074.8,3.0]
[1720543834983,1.48391716,3074.9,3074.7,6.25232]
[1720543835185,1.48391716,3074.9,3074.8,3.25224]
[1720543835371,1.48391716,3074.9,3074.8,6.25224]
[1720543835576,1.48391716,3074.9,3074.8,3.0]
[1720543835909,1.48391716,3074.9,3074.7,6.25233]
[1720543836204,1.48391716,3074.9,3074.8,3.25224]
[1720543836364,1.48391716,3074.9,3074.8,6.25224]
[1720543836566,1.48391716,3074.9,3074.8,3.0]
[1720543836764,1.48391716,3075.1,3074.8,3.877477]
[1720543836976,1.48391716,3075.3,3074.8,7.320477]
[1720543837475,1.48391716,3075.3,3075.0,3.25196]
[1720543837676,1.48391716,3075.1,3074.8,6.69514]
[1720543837987,1.48391716,3074.9,3074.7,3.0]
[1720543838191,0.67935597,3075.3,3074.3,3.443]
[1720543838192,1.48391716,3074.4,3074.3,3.443]
[1720543838390,1.48391716,3074.9,3074.0,5.54671]
[1720543838607,1.48391716,3074.9,3074.2,3.25281]
[1720543839108,1.48391716,3074.9,3074.3,3.443]
[1720543839282,1.48391716,3074.7,3074.6,3.25245]
[1720543839825,1.48391716,3074.7,3074.6,6.5049]
[1720543840338,1.48391716,3074.7,3074.6,3.25245]
[1720543840477,1.48391716,3074.5,3074.3,6.69569]
[1720543840892,1.48391716,3074.5,3074.4,3.25266]
[1720543841587,1.48391716,3074.8,3074.3,3.443]
[1720543841779,1.48391716,3074.9,3074.8,3.25224]
[1720543842416,1.48391716,3074.9,3074.6,3.25238]
[1720543842718,1.48391716,3074.9,3074.8,3.25224]
[1720543843311,1.48391716,3075.1,3075.0,3.25203]
[1720543843521,1.48391716,3075.1,3075.0,5.83203]
[1720543845796,1.48391716,3075.1,3075.0,2.58]
[1720543846680,1.48391716,3075.1,3075.0,5.83203]
[1720543847517,1.48391716,3075.3,3075.0,2.58]
[1720543847725,1.48391716,3075.3,3075.1,3.2519]
[1720543847928,1.48391716,3075.5,3075.0,2.58]
[1720543848228,1.48391716,3075.5,3075.4,3.2516]
[1720543848522,20.09055778,3075.7,3075.6,3.25139]
[1720543848718,1.48391716,3075.7,3075.6,3.25139]
[1720543848883,6.40664062,3076.2,3075.9,3.25107]
[1720543848884,1.48391716,3076.1,3075.9,3.25107]
[1720543849081,1.48391716,3076.1,3076.0,2.58]
[1720543849320,0.67860161,3076.7,3076.0,2.58]
[1720543849321,7.89055778,3076.6,3076.5,3.25044]
[1720543849522,1.48391716,3076.6,3076.5,5.83044]
[1720543849886,1.48391716,3076.6,3076.5,2.58]
[1720543850390,1.48391716,3076.6,3076.0,2.3386]
[1720543850391,1.48391716,3076.3,3076.1,2.58]
[1720543850836,1.48391716,3076.3,3075.7,2.58]
[1720543851189,1.48391716,3076.3,3075.5,3.25142]
[1720543851190,1.12642533,3076.2,3075.4,3.25153]
[1720543851433,1.48391716,3075.5,3075.4,3.25153]
[1720543851734,6.40664062,3076.0,3075.6,3.25129]
[1720543851886,6.40664062,3076.0,3075.1,5.59052]
[1720543851887,6.40664062,3076.0,3075.9,5.83108]
[1720543852088,6.40664062,3076.0,3075.9,9.08216]
[1720543852708,6.40664062,3076.0,3075.9,5.83108]
[1720543853730,6.40664062,3076.0,3075.9,9.08216]
[1720543853898,6.40664062,3076.0,3075.9,5.83108]
[1720543854096,6.40664062,3076.0,3075.9,2.58]
[1720543854097,7.89055778,3076.0,3075.9,2.58]
[1720543854561,7.89055778,3076.0,3075.3,3.0]
[1720543854562,1.48391716,3075.7,3075.5,2.58]
[1720543854744,1.48391716,3075.7,3075.6,3.0]
[1720543854951,1.48391716,3075.7,3075.6,6.25139]
[1720543855160,6.40664062,3076.0,3074.7,2.342]
[1720543855459,1.48391716,3075.0,3074.9,3.25213]
[1720543856670,1.48391716,3075.0,3074.8,2.58]
[1720543856821,1.48391716,3074.5,3074.4,5.83265]
[1720543857023,7.08381227,3075.5,3074.5,3.25255]
[1720543857226,1.48391716,3074.7,3074.5,6.50501]
[1720543857537,1.48391716,3074.7,3074.5,3.25246]
[1720543857738,0.67717165,3075.4,3074.5,2.58]
[1720543858072,1.48391716,3074.7,3074.6,3.0]
[1720543858293,1.48391716,3074.7,3074.6,6.25245]
[1720543858457,1.48391716,3074.7,3074.6,3.0]
[1720543858626,1.48391716,3074.7,3074.5,2.58]
[1720543858826,1.48391716,3074.9,3074.5,5.83248]
[1720543859049,1.48391716,3074.9,3074.8,3.25224]
[1720543859327,7.89055778,3075.5,3075.0,3.25203]
[1720543859581,1.48391716,3075.2,3075.1,2.58]
[1720543859940,1.48391716,3075.2,3074.9,3.25207]
[1720543860163,1.48391716,3075.2,3074.7,9.08458]
[1720543860326,1.48391716,3074.9,3074.7,2.58]
[1720543860521,1.48391716,3075.1,3074.8,3.25224]
[1720543860756,1.48391716,3075.1,3074.9,3.25204]
[1720543860967,6.40664062,3075.5,3074.9,3.25204]
[1720543860968,7.89055778,3075.5,3075.2,3.2518]
[1720543861174,7.89055778,3075.5,3075.3,3.2517]
[1720543861327,1.48391716,3075.5,3075.3,3.2517]
[1720543861528,1.48391716,3075.5,3075.4,3.2516]
[1720543861729,1.48391716,3075.5,3075.2,2.58]
[1720543861730,1.48391716,3075.3,3075.2,2.58]
[1720543862095,18.60664062,3075.8,3075.2,2.58]
[1720543862096,1.48391716,3075.5,3075.3,3.2517]
[1720543862232,1.48391716,3075.5,3075.2,5.83173]
[1720543862571,1.48391716,3075.5,3075.4,3.2516]
[1720543862772,1.48391716,3075.5,3075.2,2.58]
[1720543862773,1.48391716,3075.3,3075.2,2.58]
[1720543863073,1.48391716,3075.5,3075.4,3.2516]
[1720543863271,18.60664062,3075.8,3075.4,3.25151]
[1720543863478,1.48391716,3075.9,3075.6,2.58]
[1720543863633,7.89055778,3076.2,3075.9,3.25102]
[1720543863833,1.48391716,3076.0,3075.9,3.25102]
[1720543864030,7.89055778,3076.2,3076.1,3.25086]
[1720543864252,1.48391716,3076.2,3076.1,5.83086]
[1720543865045,1.48391716,3076.2,3076.1,9.08172]
[1720543865229,6.40664062,3076.7,3076.1,3.163086]
[1720543865230,1.48391716,3076.4,3076.1,3.163086]
[1720543865429,7.89055778,3076.7,3076.5,3.25039]
[1720543865668,7.89055778,3076.7,3076.6,2.58]
[1720543865859,7.89055778,3076.7,3076.6,5.83034]
[1720543866172,12.2,3077.0,3076.9,6.50004]
[1720543866173,1.48391716,3077.0,3076.9,6.50004]
[1720543866346,1.48391716,3077.3,3077.0,3.24981]
[1720543866664,1.48391716,3077.1,3077.0,2.58]
[1720543866876,0.67717165,3077.4,3077.0,3.24991]
[1720543866877,1.48391716,3077.4,3077.0,3.24991]
[1720543867076,1.48391716,3077.4,3077.2,3.2497]
[1720543867235,1.48391716,3077.1,3077.0,3.24982]
[1720543868251,1.48391716,3077.1,3076.9,6.49995]
[1720543868857,1.48391716,3076.9,3076.6,3.0]
[1720543869173,1.48391716,3076.9,3076.8,3.25013]
[1720543869486,1.48391716,3076.9,3076.8,6.50026]
[1720543869986,1.48391716,3076.9,3076.8,3.25013]
[1720543870347,1.48391716,3076.9,3076.8,6.50026]
[1720543871083,1.48391716,3076.9,3076.8,3.25013]
[1720543871240,1.48391716,3076.9,3076.8,7.125273]
[1720543871441,1.48391716,3077.1,3077.0,3.24991]
[1720543871839,1.48391716,3077.1,3076.6,3.0]
[1720543872061,1.48391716,3077.1,3076.5,3.0]
[1720543872266,1.48391716,3077.1,3076.5,3.3435]
[1720543872585,1.48391716,3076.7,3076.6,3.25034]
[1720543872781,1.48391716,3076.9,3076.8,3.25013]
[1720543873073,1.48391716,3077.1,3076.8,6.50019]
[1720543873235,1.48391716,3076.9,3076.8,3.25006]
[1720543873879,1.48391716,3076.6,3076.5,3.0]
[1720543874056,1.48391716,3076.6,3076.5,6.25044]
[1720543874465,1.48391716,3076.6,3076.5,9.50088]
[1720543874705,1.48391716,3076.8,3076.7,3.25023]
[1720543875578,6.40664062,3077.5,3076.9,3.25002]
[1720543875579,1.48391716,3077.0,3076.9,3.25002]
[1720543877690,1.48391716,3077.0,3076.8,6.50013]
[1720543877871,1.48391716,3077.0,3076.9,3.25002]
[1720543878863,1.48391716,3076.8,3076.7,3.25015]
[1720543879307,1.48391716,3076.8,3076.7,3.25023]
[1720543879711,1.48391716,3077.0,3076.8,3.25011]
[1720543879910,1.48391716,3077.0,3076.9,3.25002]
[1720543880479,1.48391716,3077.0,3076.8,6.50018]
[1720543880679,6.40664062,3077.5,3076.7,3.25014]
[1720543880680,1.48391716,3076.8,3076.7,3.25014]
[1720543880903,1.48391716,3076.8,3076.5,3.0]
[1720543881165,1.48391716,3076.8,3076.6,3.25033]
[1720543882376,1.48391716,3076.8,3076.7,3.25023]
[1720543882592,1.48391716,3076.8,3076.7,7.450516]
[1720543882795,1.48391716,3077.1,3077.0,3.24989]
[1720543884000,1.48391716,3077.1,3076.9,3.24993]
[1720543884206,1.48391716,3077.1,3076.7,4.200216]
[1720543884382,1.48391716,3076.9,3076.8,3.25013]
[1720543885401,1.48391716,3076.9,3076.5,6.25035]
[1720543885575,1.48391716,3077.0,3076.5,3.0]
[1720543885775,0.67825272,3077.4,3076.5,3.0]
[1720543885776,1.48391716,3076.6,3076.5,3.0]
[1720543886273,1.48391716,3076.4,3075.9,3.435]
[1720543886572,1.48391716,3076.1,3076.0,3.25097]
[1720543886996,1.48391716,3076.5,3076.1,3.25081]
[1720543887196,1.48391716,3076.5,3076.1,4.244488]
[1720543887522,1.48391716,3076.3,3076.1,4.244488]
[1720543887806,1.48391716,3076.3,3076.1,3.25081]
[1720543888007,1.48391716,3076.3,3076.2,3.25076]
[1720543888206,0.67825272,3076.8,3076.5,3.25044]
[1720543888427,1.48391716,3076.6,3076.0,0.3435]
[1720543888619,1.48391716,3076.4,3076.3,2.577]
[1720543889005,1.48391716,3076.9,3076.4,3.25055]
[1720543889319,1.48391716,3076.9,3076.7,5.82721]
[1720543890142,1.48391716,3076.9,3076.7,9.07737]
[1720543890309,1.48391716,3076.9,3076.7,5.82716]
[1720543891043,1.48391716,3076.9,3076.8,3.25013]
[1720543891243,1.48391716,3076.9,3076.7,2.577]
[1720543891545,1.48391716,3077.1,3077.0,3.24991]
[1720543892494,1.48391716,3077.3,3077.1,3.24972]
[1720543892938,1.48391716,3077.3,3077.1,5.82672]
[1720543893126,1.48391716,3077.3,3077.1,2.577]
[1720543893300,1.48391716,3077.3,3077.1,5.82681]
[1720543893597,1.12583884,3077.2,3077.1,5.82681]
[1720543894038,1.48391716,3077.3,3077.1,5.82681]
[1720543894338,1.12581932,3077.2,3077.1,5.82681]
[1720543894523,1.12582477,3077.2,3077.1,5.82681]
[1720543894728,1.12582477,3077.2,3077.1,6.18596071]
[1720543895131,1.48391716,3077.3,3077.2,3.2497]
[1720543895333,2.60971866,3077.3,3077.2,3.2497]
[1720543895525,2.60971866,3077.3,3077.1,2.577]
[1720543895726,1.1258015,3077.2,3077.1,2.577]
[1720543897041,1.48391716,3077.1,3077.0,3.24983]
[1720543897348,1.48391716,3077.1,3077.0,3.899815]
[1720543897556,1.48391716,3077.1,3077.0,7.149725]
[1720543898327,1.48391716,3077.1,3077.0,3.899815]
[1720543898651,1.48391716,3077.1,3077.0,3.24983]
[1720543899445,1.48391716,3077.1,3076.8,3.25003]
[1720543899446,1.48391716,3076.9,3076.8,3.25003]
[1720543899660,1.48391716,3076.9,3076.8,6.25003]
[1720543899844,1.48391716,3076.9,3076.8,7.132733]
[1720543900251,1.48391716,3077.1,3077.0,3.24991]
[1720543900747,0.67924296,3077.6,3077.4,3.2494]
[1720543900748,1.48391716,3077.6,3077.4,3.2494]
[1720543901061,1.12571387,3077.5,3077.4,3.2494]
[1720543901256,1.48391716,3077.6,3077.4,3.2494]
[1720543901459,1.12571564,3077.5,3077.4,3.2494]
[1720543901661,1.48391716,3077.6,3077.4,6.49883]
[1720543901863,1.12569947,3077.5,3077.4,3.2494]
[1720543902518,1.48391716,3077.6,3077.5,3.24939]
[1720543902764,2.60959235,3077.6,3077.5,3.24939]
[1720543903760,1.48391716,3077.6,3077.5,3.24939]
[1720543903963,1.48391716,3077.8,3077.7,3.24917]
[1720543904257,1.48391716,3077.8,3077.7,9.07534]
[1720543904466,1.48391716,3077.8,3077.7,5.82617]
[1720543904996,1.48391716,3077.8,3077.7,6.8244769]
[1720543905166,1.48391716,3077.8,3077.7,10.0736469]
[1720543905577,1.48391716,3077.8,3077.7,6.8244769]
[1720543905770,1.57336582,3077.8,3077.7,2.577]
[1720543905973,2.25261724,3077.8,3077.7,2.577]
[1720543906174,1.57336582,3077.8,3077.7,5.82617]
[1720543906599,2.25261724,3077.8,3077.7,5.82617]
[1720543906759,1.48391716,3077.8,3077.7,5.82617]
[1720543907103,1.57336283,3077.8,3077.7,2.577]
[1720543907260,2.25261425,3077.8,3077.7,2.577]
[1720543907783,2.25265593,3077.8,3077.7,2.577]
[1720543908186,2.16316858,3077.8,3077.7,2.577]
[1720543908361,1.48391716,3077.8,3077.7,6.4995469]
[1720543908565,1.48391716,3077.8,3077.7,9.7487169]
[1720543909065,0.67925142,3078.0,3077.9,3.24896]
[1720543909286,0.67925142,3078.0,3077.8,3.249]
[1720543909287,1.48391716,3077.9,3077.8,3.249]
[1720543909596,2.25448115,3077.9,3077.8,3.249]
[1720543909799,2.25448115,3077.9,3077.8,7.14800769]
[1720543909983,2.25448115,3077.9,3077.8,3.24907]
[1720543909984,1.57333935,3077.9,3077.8,3.24907]
[1720543910195,2.25448761,3077.9,3077.8,3.24907]
[1720543910376,2.25447979,3077.9,3077.8,3.24907]
[1720543910706,2.25447979,3077.9,3077.7,5.82617]
[1720543910862,2.25447979,3077.9,3077.7,9.07527]
[1720543910863,0.77059451,3077.8,3077.7,9.07527]
[1720543911065,1.35850284,3078.1,3078.0,3.24886]
[1720543911066,2.50564093,3078.1,3078.0,3.24886]
[1720543911267,2.59509909,3078.1,3078.0,3.24886]
[1720543911595,4.01313059,3078.1,3078.0,3.24886]
[1720543912303,1.48391716,3077.9,3077.7,2.577]
[1720543912476,2.16494226,3077.9,3077.8,3.24907]
[1720543912681,1.57340514,3077.9,3077.8,3.24907]
[1720543913001,2.59494279,3077.9,3077.8,3.24907]
[1720543913180,1.57340514,3077.9,3077.8,3.24907]
[1720543913587,2.25433155,3077.9,3077.8,3.24907]
[1720543913789,1.57340514,3077.9,3077.8,3.24907]
[1720543913979,1.57340514,3077.9,3077.7,2.577]
[1720543914306,1.48391716,3077.9,3077.7,2.577]
[1720543914502,0.77045318,3077.8,3077.7,2.577]
[1720543914878,0.77045318,3077.8,3077.7,5.82617]
[1720543915084,2.16486394,3077.9,3077.8,3.24907]
[1720543915310,2.25432654,3077.9,3077.8,3.24907]
[1720543916183,1.57337976,3077.9,3077.8,3.24907]
[1720543916716,1.57334046,3077.9,3077.8,3.24907]
[1720543917016,2.25428724,3077.9,3077.8,3.24907]
[1720543917198,2.25428724,3077.9,3077.7,2.577]
[1720543917199,1.57334046,3077.9,3077.7,5.82608]
[1720543917399,0.77016095,3077.8,3077.7,5.82608]
[1720543917611,0.77020226,3077.8,3077.7,5.82608]
[1720543917784,2.16465481,3077.9,3077.8,3.24907]
[1720543917979,1.48391716,3077.9,3077.8,3.24907]
[1720543918783,1.48391716,3077.9,3077.8,7.15986982]
[1720543919184,0.68073765,3078.1,3078.0,3.24886]
[1720543919380,2.16465481,3078.2,3078.1,3.24875]
[1720543919619,2.25398905,3078.2,3078.1,5.82575]
[1720543919835,2.25398905,3078.2,3078.1,2.577]
[1720543920135,2.59467157,3078.2,3078.1,2.577]
[1720543920338,3.72017916,3078.2,3078.1,2.577]
[1720543920644,3.72017916,3078.2,3077.3,5.2988]
[1720543920645,1.48391716,3078.1,3077.6,3.24927]
[1720543920825,1.48391716,3077.7,3077.6,3.24927]
[1720543921029,1.48391716,3077.7,3077.6,6.24927]
[1720543921839,2.25395496,3077.7,3077.5,3.24938]
[1720543922048,1.48391716,3077.5,3077.3,2.577]
[1720543922342,1.48391716,3077.5,3077.4,6.24949]
[1720543922651,0.6805525,3077.7,3077.3,2.577]
[1720543922851,1.48391716,3077.0,3076.9,2.577]
[1720543923051,1.48391716,3077.0,3076.2,3.25075]
[1720543923052,1.48391716,3076.3,3076.2,3.25075]
[1720543923254,0.68086214,3076.4,3076.2,3.25075]
[1720543923557,1.48391716,3076.3,3076.2,3.25075]
[1720543924107,0.68086214,3076.4,3076.2,3.25075]
[1720543924308,0.68086214,3076.5,3076.3,5.82765]
[1720543924510,7.08750276,3076.8,3076.7,3.25023]
[1720543924734,6.40664062,3076.8,3076.7,5.82723]
[1720543925349,7.89055778,3076.8,3076.7,5.82723]
[1720543925945,7.89055778,3076.8,3076.7,6.734995]
[1720543925946,6.40664062,3076.8,3076.7,6.734995]
[1720543926260,0.68086214,3077.1,3077.0,3.24991]
[1720543926430,0.68086214,3077.5,3077.3,3.2496]
[1720543926631,19.28750276,3077.6,3077.4,3.24943]
[1720543926946,19.28750276,3077.6,3077.3,3.24953]
[1720543927120,19.28750276,3077.6,3077.5,2.577]
[1720543927314,19.37697354,3077.6,3077.5,2.577]
[1720543927535,19.37697354,3077.6,3077.5,5.82639]
[1720543927536,18.6961114,3077.6,3077.5,5.82639]
[1720543927716,19.37697354,3077.6,3077.5,2.577]
[1720543928123,19.37653245,3077.6,3077.5,2.577]
[1720543928435,1.48391716,3077.4,3077.2,3.24961]
[1720543928684,0.68048974,3077.5,3077.1,2.577]
[1720543928820,1.48391716,3077.2,3077.1,2.577]
[1720543929016,1.48391716,3077.2,3077.1,8.82681]
[1720543929215,0.68048974,3077.4,3077.3,3.2496]
[1720543929216,2.1644069,3077.4,3077.3,3.2496]
[1720543929455,19.62793383,3077.6,3077.4,3.24949]
[1720543929456,1.48391716,3077.5,3077.4,3.24949]
[1720543929637,0.76999371,3077.5,3077.4,3.24949]
[1720543929864,1.48391716,3077.5,3077.4,3.24949]
[1720543930066,0.08950907,3077.5,3077.4,3.24949]
[1720543930253,0.08951091,3077.5,3077.4,3.24949]
[1720543930448,0.68047243,3077.5,3077.4,3.24949]
[1720543930655,1.48391716,3077.4,3077.3,3.24957]
[1720543930913,2.2539005,3077.4,3077.3,3.24957]
[1720543931414,0.76998334,3077.4,3077.1,2.577]
[1720543931549,0.76998334,3077.3,3077.1,2.577]
[1720543931753,0.76998334,3077.2,3077.1,2.577]
[1720543932016,0.68047243,3077.2,3077.1,2.577]
[1720543932155,0.08951091,3077.2,3077.1,6.409434]
[1720543932489,0.68047243,3077.5,3077.1,6.409434]
[1720543932702,0.68074273,3077.4,3077.1,6.409434]
[1720543933056,0.68074273,3077.4,3077.2,3.2497]
[1720543933495,0.77033889,3077.3,3077.2,3.2497]
[1720543933693,0.68074273,3077.4,3077.3,3.2496]
[1720543933992,0.77032797,3077.4,3077.3,3.2496]
[1720543934292,1.48391716,3077.5,3077.4,3.24949]
[1720543934293,2.16465989,3077.5,3077.4,3.24949]
[1720543934495,2.25421388,3077.5,3077.4,3.24949]
[1720543934698,2.59458524,3077.5,3077.4,3.24949]
[1720543934900,1.11066808,3077.5,3077.4,3.899409]
[1720543935058,0.68099622,3077.9,3077.8,6.49814]
[1720543935260,0.68099622,3078.2,3078.1,3.24875]
[1720543935502,6.40664062,3078.4,3078.3,6.49708]
[1720543935657,7.08763684,3078.4,3078.3,6.49708]
[1720543935853,1.48391716,3078.3,3078.2,3.24863]
[1720543936994,2.16491338,3078.3,3078.2,3.24863]
[1720543937432,2.16491338,3078.3,3078.1,2.577]
[1720543937573,2.16491338,3078.3,3078.1,5.82567]
[1720543937772,0.68099622,3078.2,3078.1,5.82567]
[1720543938282,0.68099622,3078.2,3077.7,3.0]
[1720543938283,1.48391716,3077.8,3077.7,2.577]
[1720543938496,2.16479746,3077.8,3077.7,2.577]
[1720543938669,2.50523761,3077.8,3077.7,2.577]
[1720543938865,3.29485056,3077.8,3077.7,2.577]
[1720543939107,3.29485056,3077.8,3077.4,3.24943]
[1720543939108,1.48391716,3077.6,3077.4,3.24943]
[1720543939323,1.48391716,3077.4,3077.3,5.8266]
[1720543940076,0.68095896,3077.5,3077.4,3.24949]
[1720543940278,0.68105133,3077.5,3077.4,3.24949]
[1720543940916,1.48391716,3077.4,3077.3,3.484626]
[1720543941071,2.16497662,3077.4,3077.3,9.983826]
[1720543941273,1.48391716,3077.4,3077.3,2.577]
[1720543941610,1.48391716,3077.4,3077.3,5.8266]
[1720543941611,2.16497662,3077.4,3077.3,5.8266]
[1720543941777,1.48391716,3077.4,3077.3,5.8266]
[1720543942174,0.68105946,3077.6,3077.4,3.24949]
[1720543942420,2.50535561,3077.7,3077.5,3.24939]
[1720543942622,1.02143845,3077.7,3077.5,3.24939]
[1720543942828,2.16497247,3077.6,3077.5,3.24939]
[1720543943117,1.48391716,3077.4,3077.3,5.82651]
[1720543943484,1.48391716,3077.4,3077.3,8.82651]
[1720543943719,2.16501619,3077.4,3077.3,8.82651]
[1720543943912,1.48391716,3077.4,3077.3,12.07611]
[1720543944523,0.68109903,3077.5,3077.4,3.24949]
[1720543944736,1.36191793,3077.8,3077.5,3.24939]
[1720543944737,0.68109903,3077.7,3077.5,3.24939]
[1720543944900,0.68109903,3077.8,3077.7,3.24917]
[1720543945225,0.76592884,3077.8,3077.7,5.82617]
[1720543945432,6.40664062,3078.1,3077.8,3.24901]
[1720543945584,6.40664062,3078.1,3077.8,7.405598]
[1720543945585,0.68109012,3077.9,3077.8,7.405598]
[1720543945791,1.10648327,3078.0,3077.9,6.49792]
[1720543945792,0.68109012,3078.0,3077.9,6.49792]
[1720543945986,0.76591265,3078.0,3077.9,6.49792]
[1720543947193,0.76590681,3078.0,3077.9,6.49792]
[1720543947828,1.48391716,3077.8,3077.7,5.82607]
[1720543948015,2.24984126,3077.8,3077.7,9.07524]
[1720543948212,1.02165815,3078.0,3077.7,9.07524]
[1720543948213,2.16501873,3078.0,3077.9,3.24896]
[1720543948422,1.48391716,3078.0,3077.9,3.24896]
[1720543948722,2.16495485,3078.0,3077.9,3.24896]
[1720543948905,2.16495485,3078.0,3077.9,7.6979037]
[1720543948906,1.90867746,3078.0,3077.9,7.6979037]
[1720543949102,0.33993886,3078.0,3077.9,7.6979037]
[1720543950112,0.33993886,3078.0,3077.9,13.9468637]
[1720543950316,0.33993886,3078.0,3077.9,10.6979037]
[1720543951715,1.82385602,3078.0,3077.9,9.49792]
[1720543952032,1.82385602,3078.0,3077.9,6.24896]
[1720543953151,1.9086788,3078.0,3077.9,9.49792]
[1720543953342,1.82385602,3078.0,3077.9,9.49792]
[1720543953855,0.33993886,3078.0,3077.9,9.49792]
[1720543954152,1.82385602,3078.0,3077.9,6.24896]
[1720543954363,1.9086789,3078.0,3077.9,3.24896]
[1720543954654,2.58971129,3078.0,3077.9,3.24896]
[1720543954836,2.58971129,3078.0,3077.9,6.49792]
[1720543955042,0.33993886,3078.0,3077.9,7.405412]
[1720543957444,0.33993886,3078.0,3077.9,10.654372]
[1720543957648,0.33993886,3078.0,3077.9,10.405412]
[1720543958259,1.82385602,3078.0,3077.9,3.24896]
[1720543958754,1.9086797,3078.0,3077.9,3.24896]
[1720543958959,1.82385602,3078.0,3077.9,3.24896]
[1720543959117,1.82385602,3078.0,3077.9,6.49792]
[1720543959316,1.82385602,3078.0,3077.9,4.156452]
[1720543959932,1.82385602,3078.0,3077.9,7.405412]
[1720543960759,1.82385602,3078.0,3077.9,3.24896]
[1720543961067,0.33993886,3078.0,3077.9,3.24896]
[1720543961421,1.82385602,3078.0,3077.9,3.24896]
[1720543961739,1.82385602,3078.0,3077.8,3.249]
[1720543961948,1.82385602,3078.0,3077.9,3.24896]
[1720543962547,1.82385602,3078.0,3077.9,7.11494853]
[1720543962548,0.33993886,3078.0,3077.9,7.11494853]
[1720543965560,0.33993886,3078.0,3077.9,10.11494853]
[1720543966826,0.33993886,3078.0,3077.9,9.49792]
[1720543969052,0.33993886,3078.0,3077.9,12.74688]